[Event "*** SCC Grand Prix: Titled Tuesday Blitz"]
[Site "Chess.com"]
[Date "2020.09.29"]
[Round "2"]
[White "x-0414717230"]
[Black "Kostya26"]
[Result "1-0"]
[WhiteElo "2684"]
[BlackElo "2414"]
[TimeControl "180+1"]
[EndTime "10:17:38 PDT"]
[Termination "x-0414717230 won by resignation"]

1. d4 {[%clk 0:03:00.9]} 1... d5 {[%clk 0:02:59.2]} 2. Nf3 {[%clk 0:03:01.2]}
2... Nf6 {[%clk 0:02:59]} 3. Bf4 {[%clk 0:03:01.3]} 3... c6 {[%clk 0:02:59.2]}
4. e3 {[%clk 0:03:01.6]} 4... Bf5 {[%clk 0:02:57.4]} 5. c4 {[%clk 0:02:55]} 5...
e6 {[%clk 0:02:56.7]} 6. Qb3 {[%clk 0:02:54.8]} 6... Qb6 {[%clk 0:02:56.9]} 7.
c5 {[%clk 0:02:54.1]} 7... Qxb3 {[%clk 0:02:56.8]} 8. axb3 {[%clk 0:02:54.9]}
8... Nbd7 {[%clk 0:02:57]} 9. b4 {[%clk 0:02:55]} 9... Bxb1 {[%clk 0:02:56.7]}
10. Rxb1 {[%clk 0:02:48.9]} 10... a6 {[%clk 0:02:56.9]} 11. Ra1 {[%clk
0:02:44.1]} 11... Rc8 {[%clk 0:02:52.8]} 12. h3 {[%clk 0:02:43.8]} 12... Ne4
{[%clk 0:02:49.1]} 13. Bd3 {[%clk 0:02:42.7]} 13... Ndf6 {[%clk 0:02:48.2]} 14.
g4 {[%clk 0:02:25]} 14... h6 {[%clk 0:02:43]} 15. Ng1 {[%clk 0:02:10.2]} 15...
Nh7 {[%clk 0:02:02.5]} 16. f3 {[%clk 0:02:09.9]} 16... Nef6 {[%clk 0:02:02.3]}
17. Ne2 {[%clk 0:02:08.5]} 17... g5 {[%clk 0:01:57.1]} 18. Bg3 {[%clk 0:01:48]}
18... Bg7 {[%clk 0:01:47]} 19. Nc1 {[%clk 0:01:48.2]} 19... O-O {[%clk
0:01:44.5]} 20. Nb3 {[%clk 0:01:48.3]} 20... Rcd8 {[%clk 0:01:44.7]} 21. h4
{[%clk 0:01:29.4]} 21... Rfe8 {[%clk 0:01:28.9]} 22. hxg5 {[%clk 0:01:10.9]}
22... Nxg5 {[%clk 0:01:23.9]} 23. Ke2 {[%clk 0:01:06.2]} 23... Rd7 {[%clk
0:01:14.8]} 24. Be5 {[%clk 0:00:55]} 24... Nfh7 {[%clk 0:01:10]} 25. Bxg7 {[%clk
0:00:41.2]} 25... Kxg7 {[%clk 0:01:09.1]} 26. Rh4 {[%clk 0:00:33.7]} 26... Nf6
{[%clk 0:01:02.9]} 27. Rah1 {[%clk 0:00:33.5]} 27... Rh8 {[%clk 0:01:01.8]} 28.
R1h2 {[%clk 0:00:28.3]} 28... Re7 {[%clk 0:01:01.2]} 29. f4 {[%clk 0:00:28]}
29... Nge4 {[%clk 0:00:58.8]} 30. g5 {[%clk 0:00:28.6]} 30... Ng8 {[%clk
0:00:47.8]} 31. Bxe4 {[%clk 0:00:27.5]} 31... dxe4 {[%clk 0:00:48.7]} 32. Nd2
{[%clk 0:00:27.6]} 32... f5 {[%clk 0:00:47.7]} 33. gxf6+ {[%clk 0:00:24.9]}
33... Nxf6 {[%clk 0:00:47]} 34. Rg2+ {[%clk 0:00:20.4]} 34... Kf7 {[%clk
0:00:37.7]} 35. Nc4 {[%clk 0:00:20.1]} 35... h5 {[%clk 0:00:24.6]} 36. Ne5+
{[%clk 0:00:19.5]} 36... Ke8 {[%clk 0:00:24.7]} 37. Rg6 {[%clk 0:00:18.6]} 37...
Rf8 {[%clk 0:00:20.5]} 38. Rg5 {[%clk 0:00:18.2]} 38... Rh7 {[%clk 0:00:18.6]}
39. b3 {[%clk 0:00:17.4]} 39... Kd8 {[%clk 0:00:16.6]} 40. Kd2 {[%clk
0:00:17.7]} 40... Ke8 {[%clk 0:00:16.2]} 41. Kc2 {[%clk 0:00:18.2]} 41... Nd5
{[%clk 0:00:15]} 42. Kd2 {[%clk 0:00:16]} 42... Nxb4 {[%clk 0:00:14.1]} 43.
Rgxh5 {[%clk 0:00:16.6]} 43... Rxh5 {[%clk 0:00:14.1]} 44. Rxh5 {[%clk
0:00:17.5]} 44... Nd5 {[%clk 0:00:13.5]} 45. Rh6 {[%clk 0:00:17.7]} 45... Rf6
{[%clk 0:00:11.1]} 46. Rh8+ {[%clk 0:00:17.3]} 46... Rf8 {[%clk 0:00:10.7]} 47.
Rh7 {[%clk 0:00:17.9]} 47... Ne7 {[%clk 0:00:09.6]} 48. Kc3 {[%clk 0:00:15.6]}
48... Rg8 {[%clk 0:00:07.3]} 49. Kb4 {[%clk 0:00:15.9]} 49... Rg3 {[%clk
0:00:06.7]} 50. Ka5 {[%clk 0:00:15.3]} 50... Kd8 {[%clk 0:00:05.6]} 51. Kb6
{[%clk 0:00:14.4]} 51... Nc8+ {[%clk 0:00:04.9]} 52. Kxb7 {[%clk 0:00:14.7]}
52... Ne7 {[%clk 0:00:04.5]} 53. Rh8+ {[%clk 0:00:13.8]} 1-0

[Event "*** SCC Grand Prix: Titled Tuesday Blitz"]
[Site "Chess.com"]
[Date "2020.09.29"]
[Round "2"]
[White "superchthonic"]
[Black "Fischerev7"]
[Result "0-1"]
[WhiteElo "2564"]
[BlackElo "2348"]
[TimeControl "180+1"]
[EndTime "10:17:39 PDT"]
[Termination "Fischerev7 won on time"]

1. d4 {[%clk 0:03:00.9]} 1... Nf6 {[%clk 0:02:59.5]} 2. c4 {[%clk 0:03:01.1]}
2... e6 {[%clk 0:02:58.5]} 3. Nc3 {[%clk 0:03:01.4]} 3... Bb4 {[%clk 0:02:58.7]}
4. Qc2 {[%clk 0:03:01.7]} 4... c5 {[%clk 0:02:57.5]} 5. dxc5 {[%clk 0:03:01.9]}
5... Qc7 {[%clk 0:02:56.6]} 6. a3 {[%clk 0:03:01.9]} 6... Bxc5 {[%clk
0:02:55.8]} 7. Nh3 {[%clk 0:03:02.3]} 7... a6 {[%clk 0:02:43.7]} 8. Bf4 {[%clk
0:03:01.7]} 8... e5 {[%clk 0:02:43.5]} 9. Bg5 {[%clk 0:03:01.4]} 9... Be7 {[%clk
0:02:43.1]} 10. Bxf6 {[%clk 0:02:38.6]} 10... Bxf6 {[%clk 0:02:39.4]} 11. Nd5
{[%clk 0:02:38.5]} 11... Qd8 {[%clk 0:02:35.9]} 12. e3 {[%clk 0:02:08.6]} 12...
O-O {[%clk 0:02:27.2]} 13. Bd3 {[%clk 0:02:08.8]} 13... g6 {[%clk 0:02:02.4]}
14. f3 {[%clk 0:02:05.1]} 14... Nc6 {[%clk 0:02:00.4]} 15. Nf2 {[%clk
0:02:04.8]} 15... Bg7 {[%clk 0:02:00.9]} 16. h4 {[%clk 0:02:04.2]} 16... d6
{[%clk 0:01:52.5]} 17. h5 {[%clk 0:02:03.3]} 17... Be6 {[%clk 0:01:52]} 18. hxg6
{[%clk 0:02:03.3]} 18... fxg6 {[%clk 0:01:48]} 19. Be4 {[%clk 0:01:24.8]} 19...
Ne7 {[%clk 0:01:33]} 20. O-O-O {[%clk 0:01:22.1]} 20... Nxd5 {[%clk 0:01:28.6]}
21. Bxd5 {[%clk 0:01:21.8]} 21... Bxd5 {[%clk 0:01:28.9]} 22. Rxd5 {[%clk
0:01:22.4]} 22... Qb6 {[%clk 0:01:29.6]} 23. Kb1 {[%clk 0:01:14.5]} 23... Rac8
{[%clk 0:01:05.1]} 24. Qd3 {[%clk 0:01:13.5]} 24... Rc6 {[%clk 0:01:03.8]} 25.
Ne4 {[%clk 0:01:12.9]} 25... Rfc8 {[%clk 0:00:54.7]} 26. Rc1 {[%clk 0:01:12.6]}
26... Bh6 {[%clk 0:00:40.9]} 27. c5 {[%clk 0:01:11.5]} 27... dxc5 {[%clk
0:00:37.3]} 28. Qc4 {[%clk 0:01:11.7]} 28... Kh8 {[%clk 0:00:31.6]} 29. Qc3
{[%clk 0:01:00.7]} 29... Bg7 {[%clk 0:00:27]} 30. Rh1 {[%clk 0:00:55.7]} 30...
c4 {[%clk 0:00:19.6]} 31. Ng5 {[%clk 0:00:45.6]} 31... h6 {[%clk 0:00:19.8]} 32.
Nf7+ {[%clk 0:00:39.8]} 32... Kh7 {[%clk 0:00:20.2]} 33. Rd7 {[%clk 0:00:29.2]}
33... Qb3 {[%clk 0:00:17.6]} 34. Ng5+ {[%clk 0:00:22.2]} 34... Kg8 {[%clk
0:00:14.7]} 35. Rxg7+ {[%clk 0:00:21.1]} 35... Kxg7 {[%clk 0:00:13.6]} 36. Qxe5+
{[%clk 0:00:21.3]} 36... Kf8 {[%clk 0:00:09.6]} 37. Qh8+ {[%clk 0:00:15.2]}
37... Ke7 {[%clk 0:00:09.4]} 38. Qg7+ {[%clk 0:00:15.2]} 38... Kd6 {[%clk
0:00:09.4]} 39. Qf6+ {[%clk 0:00:12.5]} 39... Kc5 {[%clk 0:00:09.1]} 40. Qd4+
{[%clk 0:00:12.5]} 40... Kb5 {[%clk 0:00:09.1]} 41. Ne4 {[%clk 0:00:12.5]} 41...
c3 {[%clk 0:00:07.7]} 42. a4+ {[%clk 0:00:09.3]} 42... Ka5 {[%clk 0:00:07.5]}
43. Qe5+ {[%clk 0:00:04.2]} 43... Rc5 {[%clk 0:00:06.4]} 0-1

[Event "*** SCC Grand Prix: Titled Tuesday Blitz"]
[Site "Chess.com"]
[Date "2020.09.29"]
[Round "2"]
[White "pedromartinez91"]
[Black "Ruchess27"]
[Result "1-0"]
[WhiteElo "2453"]
[BlackElo "2280"]
[TimeControl "180+1"]
[EndTime "10:17:42 PDT"]
[Termination "pedromartinez91 won by checkmate"]

1. e4 {[%clk 0:03:00.1]} 1... e5 {[%clk 0:02:58.8]} 2. Nf3 {[%clk 0:02:59.8]}
2... Nc6 {[%clk 0:02:59.2]} 3. Bb5 {[%clk 0:02:59.6]} 3... a6 {[%clk 0:02:58.8]}
4. Ba4 {[%clk 0:02:58.3]} 4... Nf6 {[%clk 0:02:59.4]} 5. O-O {[%clk 0:02:58]}
5... Be7 {[%clk 0:03:00.1]} 6. Nc3 {[%clk 0:02:55.9]} 6... b5 {[%clk 0:02:59.4]}
7. Bb3 {[%clk 0:02:55.9]} 7... O-O {[%clk 0:02:59.1]} 8. a3 {[%clk 0:02:55.2]}
8... d6 {[%clk 0:02:58.6]} 9. d3 {[%clk 0:02:55.2]} 9... h6 {[%clk 0:02:58.6]}
10. h3 {[%clk 0:02:54.5]} 10... Nh7 {[%clk 0:02:57]} 11. Bd5 {[%clk 0:02:53]}
11... Bd7 {[%clk 0:02:53.7]} 12. d4 {[%clk 0:02:53.3]} 12... Rb8 {[%clk
0:02:48.2]} 13. Bxc6 {[%clk 0:02:51]} 13... Bxc6 {[%clk 0:02:48]} 14. dxe5
{[%clk 0:02:51.9]} 14... dxe5 {[%clk 0:02:42.4]} 15. Nxe5 {[%clk 0:02:52.8]}
15... Bb7 {[%clk 0:02:42.5]} 16. Nd7 {[%clk 0:02:51.1]} 16... Bd6 {[%clk
0:02:31.7]} 17. Nxb8 {[%clk 0:02:44.1]} 17... Qxb8 {[%clk 0:02:31]} 18. Be3
{[%clk 0:02:37.1]} 18... f5 {[%clk 0:02:30.8]} 19. exf5 {[%clk 0:02:30.5]} 19...
Rxf5 {[%clk 0:02:31.7]} 20. Qg4 {[%clk 0:02:26.2]} 20... Qf8 {[%clk 0:02:10.7]}
21. Rad1 {[%clk 0:02:21.8]} 21... h5 {[%clk 0:02:09.8]} 22. Qg6 {[%clk
0:02:16.1]} 22... Qc8 {[%clk 0:01:53.4]} 23. Bd4 {[%clk 0:02:13.4]} 23... Bf8
{[%clk 0:01:45]} 24. Rfe1 {[%clk 0:02:09.7]} 24... Rg5 {[%clk 0:01:36.4]} 25.
Qe6+ {[%clk 0:02:04.4]} 25... Qxe6 {[%clk 0:01:35.5]} 26. Rxe6 {[%clk
0:02:05.3]} 26... Rxg2+ {[%clk 0:01:26.6]} 27. Kf1 {[%clk 0:02:05.4]} 27... Ng5
{[%clk 0:01:22.5]} 28. Re8 {[%clk 0:02:01.5]} 28... Rh2 {[%clk 0:01:07.1]} 29.
Bc5 {[%clk 0:01:44.9]} 29... Rh1+ {[%clk 0:01:00.7]} 30. Ke2 {[%clk 0:01:45.2]}
30... Bf3+ {[%clk 0:01:00.6]} 31. Kd2 {[%clk 0:01:45.7]} 31... Bxd1 {[%clk
0:00:52.5]} 32. Rxf8+ {[%clk 0:01:45.7]} 32... Kh7 {[%clk 0:00:52.7]} 33. Nxd1
{[%clk 0:01:37.7]} 33... Ne4+ {[%clk 0:00:52.4]} 34. Ke2 {[%clk 0:01:37.8]}
34... Nxc5 {[%clk 0:00:51.9]} 35. Rf5 {[%clk 0:01:38.3]} 35... Ne6 {[%clk
0:00:47.9]} 36. Rxh5+ {[%clk 0:01:35.7]} 36... Kg6 {[%clk 0:00:47.8]} 37. Rh4
{[%clk 0:01:31.3]} 37... Rxh3 {[%clk 0:00:18.7]} 38. Rxh3 {[%clk 0:01:27.7]}
38... Nf4+ {[%clk 0:00:18.7]} 39. Kf3 {[%clk 0:01:27.9]} 39... Nxh3 {[%clk
0:00:19.6]} 40. Ne3 {[%clk 0:01:28.3]} 40... c6 {[%clk 0:00:13]} 41. Kg3 {[%clk
0:01:24.8]} 41... Ng5 {[%clk 0:00:12.5]} 42. Kf4 {[%clk 0:01:25.3]} 42... Nh3+
{[%clk 0:00:09.4]} 43. Kg3 {[%clk 0:01:24.9]} 43... Ng5 {[%clk 0:00:09.1]} 44.
f3 {[%clk 0:01:25.4]} 44... Kf6 {[%clk 0:00:07.7]} 45. Kf4 {[%clk 0:01:25.9]}
45... Ne6+ {[%clk 0:00:07.5]} 46. Ke4 {[%clk 0:01:26.4]} 46... Ng5+ {[%clk
0:00:07.6]} 47. Kf4 {[%clk 0:01:26.1]} 47... Ne6+ {[%clk 0:00:07.7]} 48. Kg4
{[%clk 0:01:25.7]} 48... g5 {[%clk 0:00:06.2]} 49. c3 {[%clk 0:01:24.9]} 49...
Nf4 {[%clk 0:00:05.9]} 50. Nc2 {[%clk 0:01:24.2]} 50... Nd3 {[%clk 0:00:05.8]}
51. b4 {[%clk 0:01:22]} 51... Nf2+ {[%clk 0:00:05.2]} 52. Kg3 {[%clk 0:01:21.1]}
52... Nd1 {[%clk 0:00:05.8]} 53. Nd4 {[%clk 0:01:19.8]} 53... Nxc3 {[%clk
0:00:06.2]} 54. Nxc6 {[%clk 0:01:20.4]} 54... Nb1 {[%clk 0:00:05.6]} 55. Nb8
{[%clk 0:01:18]} 55... Nxa3 {[%clk 0:00:05.5]} 56. Nxa6 {[%clk 0:01:18.9]} 56...
Nc2 {[%clk 0:00:04.1]} 57. Kg4 {[%clk 0:01:19.1]} 57... Nxb4 {[%clk 0:00:03.7]}
58. Nxb4 {[%clk 0:01:18.7]} 58... Kg6 {[%clk 0:00:02.7]} 59. Nd5 {[%clk
0:01:18.2]} 59... Kg7 {[%clk 0:00:01.8]} 60. Kxg5 {[%clk 0:01:18.2]} 60... Kf7
{[%clk 0:00:02.7]} 61. Kf5 {[%clk 0:01:18.5]} 61... Kg7 {[%clk 0:00:02.6]} 62.
Ke6 {[%clk 0:01:16.7]} 62... Kg6 {[%clk 0:00:02.5]} 63. f4 {[%clk 0:01:17.1]}
63... b4 {[%clk 0:00:03.4]} 64. f5+ {[%clk 0:01:16.8]} 64... Kg5 {[%clk
0:00:03.3]} 65. Nxb4 {[%clk 0:01:17.7]} 65... Kg4 {[%clk 0:00:03.7]} 66. f6
{[%clk 0:01:18.2]} 66... Kf3 {[%clk 0:00:04.6]} 67. f7 {[%clk 0:01:19.1]} 67...
Ke3 {[%clk 0:00:05.5]} 68. f8=Q {[%clk 0:01:19.3]} 68... Ke4 {[%clk 0:00:06.4]}
69. Qf5+ {[%clk 0:01:19]} 69... Ke3 {[%clk 0:00:06.8]} 70. Nc6 {[%clk
0:01:18.7]} 70... Kd2 {[%clk 0:00:07.7]} 71. Nd8 {[%clk 0:01:19.1]} 71... Ke3
{[%clk 0:00:07.8]} 72. Qg4 {[%clk 0:01:19.1]} 72... Kd2 {[%clk 0:00:08.7]} 73.
Qf3 {[%clk 0:01:19.1]} 73... Ke1 {[%clk 0:00:08.3]} 74. Qg2 {[%clk 0:01:19.3]}
74... Kd1 {[%clk 0:00:08.6]} 75. Kd5 {[%clk 0:01:20.2]} 75... Kc1 {[%clk
0:00:08.9]} 76. Kd4 {[%clk 0:01:21.1]} 76... Kd1 {[%clk 0:00:09.4]} 77. Kc3
{[%clk 0:01:21.3]} 77... Ke1 {[%clk 0:00:09.6]} 78. Kd3 {[%clk 0:01:20.7]} 78...
Kd1 {[%clk 0:00:10.1]} 79. Qd2# {[%clk 0:01:21.3]} 1-0

[Event "*** SCC Grand Prix: Titled Tuesday Blitz"]
[Site "Chess.com"]
[Date "2020.09.29"]
[Round "2"]
[White "Margency"]
[Black "NotFischer"]
[Result "1-0"]
[WhiteElo "2644"]
[BlackElo "2278"]
[TimeControl "180+1"]
[EndTime "10:17:43 PDT"]
[Termination "Margency won by resignation"]

1. e4 {[%clk 0:03:00.9]} 1... d5 {[%clk 0:02:59.9]} 2. exd5 {[%clk 0:03:00.6]}
2... Nf6 {[%clk 0:03:00.4]} 3. Bb5+ {[%clk 0:03:00.1]} 3... Nbd7 {[%clk
0:03:00.7]} 4. d4 {[%clk 0:02:58.9]} 4... a6 {[%clk 0:03:01.3]} 5. Be2 {[%clk
0:02:57.8]} 5... b5 {[%clk 0:02:55.9]} 6. a4 {[%clk 0:02:54.3]} 6... b4 {[%clk
0:02:55.7]} 7. c4 {[%clk 0:02:51.8]} 7... bxc3 {[%clk 0:02:38.9]} 8. Nxc3 {[%clk
0:02:40.8]} 8... Nb6 {[%clk 0:02:38.9]} 9. Bf3 {[%clk 0:02:38.2]} 9... Bb7
{[%clk 0:02:37.2]} 10. a5 {[%clk 0:02:33.5]} 10... Nbxd5 {[%clk 0:02:36.4]} 11.
Qb3 {[%clk 0:02:32.1]} 11... Rb8 {[%clk 0:02:26.2]} 12. Bg5 {[%clk 0:02:28.6]}
12... e6 {[%clk 0:02:17.2]} 13. Bxf6 {[%clk 0:02:15.1]} 13... gxf6 {[%clk
0:02:18.1]} 14. Qa4+ {[%clk 0:02:08]} 14... Qd7 {[%clk 0:02:06]} 15. Qxd7+
{[%clk 0:02:06.4]} 15... Kxd7 {[%clk 0:02:06.9]} 16. Ne4 {[%clk 0:01:31]} 16...
Bb4+ {[%clk 0:02:02.5]} 17. Kf1 {[%clk 0:01:30.8]} 17... Ke7 {[%clk 0:01:59.1]}
18. Ne2 {[%clk 0:01:30]} 18... Bc6 {[%clk 0:01:56.6]} 19. g3 {[%clk 0:01:27.8]}
19... h5 {[%clk 0:01:46.1]} 20. h4 {[%clk 0:01:26.7]} 20... Rb5 {[%clk 0:01:34]}
21. Kg2 {[%clk 0:01:20.3]} 21... Rg8 {[%clk 0:01:23.7]} 22. Rhc1 {[%clk
0:01:03.8]} 22... Bb7 {[%clk 0:01:14.1]} 23. N4c3 {[%clk 0:00:51.4]} 23... Rxa5
{[%clk 0:01:01.8]} 24. Rxa5 {[%clk 0:00:41.6]} 24... Bxa5 {[%clk 0:01:02.7]} 25.
Nxd5+ {[%clk 0:00:41.9]} 25... Bxd5 {[%clk 0:00:56.1]} 26. Bxd5 {[%clk
0:00:41.2]} 26... exd5 {[%clk 0:00:57]} 27. Nf4 {[%clk 0:00:33.4]} 27... Kd6
{[%clk 0:00:49.9]} 28. Rc5 {[%clk 0:00:31.5]} 28... Bb6 {[%clk 0:00:44.1]} 29.
Rxd5+ {[%clk 0:00:31.4]} 29... Kc6 {[%clk 0:00:44.4]} 30. Rxh5 {[%clk
0:00:28.4]} 30... Bxd4 {[%clk 0:00:42.8]} 31. b3 {[%clk 0:00:25.6]} 31... Rb8
{[%clk 0:00:41.9]} 32. Ra5 {[%clk 0:00:25]} 32... Rxb3 {[%clk 0:00:35.6]} 33.
Rxa6+ {[%clk 0:00:25]} 33... Bb6 {[%clk 0:00:35.5]} 34. h5 {[%clk 0:00:23.6]}
34... Rb2 {[%clk 0:00:35.4]} 35. h6 {[%clk 0:00:20]} 35... Rxf2+ {[%clk
0:00:35.1]} 36. Kh3 {[%clk 0:00:20.5]} 36... Rf1 {[%clk 0:00:28]} 37. Kg2 {[%clk
0:00:20.6]} 37... Rg1+ {[%clk 0:00:27.9]} 38. Kh2 {[%clk 0:00:20.9]} 38... Rd1
{[%clk 0:00:17.7]} 39. Ra8 {[%clk 0:00:20.8]} 39... f5 {[%clk 0:00:15.2]} 40. h7
{[%clk 0:00:20]} 40... Bg1+ {[%clk 0:00:15]} 41. Kg2 {[%clk 0:00:19.2]} 41...
Bd4 {[%clk 0:00:15.4]} 42. Rd8 {[%clk 0:00:19.7]} 42... Rd2+ {[%clk 0:00:14.3]}
43. Kh3 {[%clk 0:00:20]} 43... Kc5 {[%clk 0:00:05.4]} 44. Rxd4 {[%clk
0:00:17.4]} 44... Rxd4 {[%clk 0:00:06.3]} 45. h8=Q {[%clk 0:00:17.4]} 45... Kc4
{[%clk 0:00:06.9]} 46. Qe5 {[%clk 0:00:17.2]} 46... c5 {[%clk 0:00:06.9]} 47.
Qxf5 {[%clk 0:00:17.3]} 47... Kc3 {[%clk 0:00:05.9]} 48. Qxc5+ {[%clk
0:00:16.1]} 1-0

[Event "*** SCC Grand Prix: Titled Tuesday Blitz"]
[Site "Chess.com"]
[Date "2020.09.29"]
[Round "2"]
[White "IngOscarArdila"]
[Black "lucachess49"]
[Result "0-1"]
[WhiteElo "2155"]
[BlackElo "2406"]
[TimeControl "180+1"]
[EndTime "10:17:44 PDT"]
[Termination "lucachess49 won by checkmate"]

1. d4 {[%clk 0:03:00.9]} 1... Nf6 {[%clk 0:02:40.9]} 2. c4 {[%clk 0:02:59.4]}
2... e6 {[%clk 0:02:40.6]} 3. Nc3 {[%clk 0:02:59.4]} 3... Bb4 {[%clk 0:02:38.9]}
4. Bd2 {[%clk 0:02:59.7]} 4... O-O {[%clk 0:02:35.5]} 5. Nf3 {[%clk 0:02:59.5]}
5... c5 {[%clk 0:02:27.6]} 6. e3 {[%clk 0:02:55]} 6... cxd4 {[%clk 0:02:17.5]}
7. Nxd4 {[%clk 0:02:55.1]} 7... Nc6 {[%clk 0:02:16.5]} 8. Nf3 {[%clk 0:02:52.2]}
8... b6 {[%clk 0:02:14.6]} 9. Be2 {[%clk 0:02:52]} 9... Bb7 {[%clk 0:02:14.1]}
10. O-O {[%clk 0:02:51.7]} 10... Rc8 {[%clk 0:02:12.4]} 11. a3 {[%clk
0:02:50.5]} 11... Bd6 {[%clk 0:02:09.8]} 12. b4 {[%clk 0:02:49.9]} 12... Bb8
{[%clk 0:02:09]} 13. Qb3 {[%clk 0:02:47.5]} 13... a6 {[%clk 0:02:08.7]} 14. Rac1
{[%clk 0:02:46.8]} 14... Qc7 {[%clk 0:02:08.7]} 15. g3 {[%clk 0:02:45.3]} 15...
Ba8 {[%clk 0:01:57]} 16. Rfe1 {[%clk 0:02:44.8]} 16... Qb7 {[%clk 0:01:56.7]}
17. e4 {[%clk 0:02:25]} 17... Ne5 {[%clk 0:01:56.6]} 18. Nxe5 {[%clk 0:02:20.5]}
18... Bxe5 {[%clk 0:01:57.5]} 19. f3 {[%clk 0:02:14.9]} 19... h5 {[%clk
0:00:54]} 20. Bd3 {[%clk 0:02:00.4]} 20... h4 {[%clk 0:00:51.7]} 21. Kg2 {[%clk
0:01:58.4]} 21... Bb8 {[%clk 0:00:27.9]} 22. Ne2 {[%clk 0:01:53.6]} 22... Nh5
{[%clk 0:00:21.1]} 23. Bf4 {[%clk 0:01:47.6]} 23... Nxf4+ {[%clk 0:00:19.8]} 24.
gxf4 {[%clk 0:01:47.8]} 24... Qc7 {[%clk 0:00:15.7]} 25. Qb2 {[%clk 0:01:43.7]}
25... Qd8 {[%clk 0:00:15.4]} 26. Kh1 {[%clk 0:01:37.8]} 26... e5 {[%clk
0:00:11.6]} 27. Rg1 {[%clk 0:01:36.1]} 27... Qf6 {[%clk 0:00:10.8]} 28. Rg4
{[%clk 0:01:32.3]} 28... h3 {[%clk 0:00:10]} 29. Rcg1 {[%clk 0:01:31.1]} 29...
g6 {[%clk 0:00:07.6]} 30. f5 {[%clk 0:01:27.1]} 30... Kg7 {[%clk 0:00:06.3]} 31.
R1g3 {[%clk 0:01:26]} 31... Bc6 {[%clk 0:00:03.7]} 32. fxg6 {[%clk 0:01:21.4]}
32... fxg6 {[%clk 0:00:04.6]} 33. Rxg6+ {[%clk 0:01:21.1]} 33... Qxg6 {[%clk
0:00:05.5]} 34. Rxg6+ {[%clk 0:01:21.2]} 34... Kxg6 {[%clk 0:00:06.4]} 35. Ng1
{[%clk 0:01:18]} 35... Bd6 {[%clk 0:00:04.4]} 36. Qf2 {[%clk 0:01:16.3]} 36...
Rf6 {[%clk 0:00:03.7]} 37. Qg3+ {[%clk 0:01:16]} 37... Kf7 {[%clk 0:00:03.9]}
38. Qxh3 {[%clk 0:01:15.2]} 38... Rg8 {[%clk 0:00:03.8]} 39. Qh7+ {[%clk
0:01:13.9]} 39... Rg7 {[%clk 0:00:04]} 40. Qh5+ {[%clk 0:01:13.4]} 40... Rfg6
{[%clk 0:00:04.6]} 41. c5 {[%clk 0:01:12.8]} 41... Ke7 {[%clk 0:00:05.1]} 42.
cxd6+ {[%clk 0:01:11.9]} 42... Kxd6 {[%clk 0:00:05.6]} 43. Ne2 {[%clk
0:01:00.1]} 43... Ba4 {[%clk 0:00:05.7]} 44. f4 {[%clk 0:00:59]} 44... Bd1
{[%clk 0:00:04.9]} 45. Qxe5+ {[%clk 0:00:58.3]} 45... Kc6 {[%clk 0:00:04.5]} 46.
Qd5+ {[%clk 0:00:32.1]} 46... Kc7 {[%clk 0:00:04.2]} 47. Qe5+ {[%clk 0:00:26.8]}
47... Kc6 {[%clk 0:00:03.8]} 48. Qd5+ {[%clk 0:00:20.2]} 48... Kc7 {[%clk
0:00:03.8]} 49. Qc4+ {[%clk 0:00:20.6]} 49... Kd8 {[%clk 0:00:03.3]} 50. h4
{[%clk 0:00:19.1]} 50... Bxe2 {[%clk 0:00:01.7]} 51. Bxe2 {[%clk 0:00:18.9]}
51... Rg1+ {[%clk 0:00:02.3]} 52. Kh2 {[%clk 0:00:19.3]} 52... R1g2+ {[%clk
0:00:03]} 53. Kh3 {[%clk 0:00:19.4]} 53... R7g3# {[%clk 0:00:02.5]} 0-1